[Event "HUN-chT Youth 2019"]
[Site "Budapest"]
[Date "2019.10.27"]
[Round "3.10"]
[White "Szamko, Balint"]
[Black "Szabo, Akos"]
[Result "0-1"]
[ECO "C47"]
[WhiteElo "1129"]
[BlackElo "1418"]
[Annotator "NA"]
[PlyCount "92"]
[EventDate "2019.10.26"]
[EventType "team-tourn"]
[EventCountry "HUN"]
[SourceTitle "playchess.com"]
[Source "ChessBase"]
[SourceQuality "1"]
[TimeControl "5400+30"]

1. e4 e5 2. Nf3 {[%emt 0:00:06]} Nc6 {[%emt 0:00:26]} 3. Nc3 {[%emt 0:00:29]} Nf6 {[%emt 0:00:22]} 4. d4 {[%emt 0:01:16]} exd4 {[%emt 0:01:07]} 5. Nxd4 {[%emt 0:00:16]} Bb4 {[%emt 0:00:30]} 6. Nxc6 {[%emt 0:00:44]} bxc6 {[%emt 0:00:28]} 7. e5 {[%emt 0:00:49]} Nd5 {[%emt 0:00:11]} 8. Bd2 {[%emt 0:00:30]} Nxc3 {[%emt 0:04:10]} 9. Bxc3 {[%emt 0:00:16]} Bxc3+ {[%emt 0:00:17]} 10. bxc3 {[%emt 0:00:14]} Rb8 {[%emt 0:00:09]} 11. e6 {[%emt 0:00:43]} Qe7 {[%emt 0:04:21]} 12. Bc4 {[%emt 0:00:40]} fxe6 {[%emt 0:00:35]} 13. Qh5+ {[%emt 0:00:18]} Qf7 {[%emt 0:00:07]} 14. Qxf7+ {[%emt 0:00:59]} Kxf7 {[%emt 0:00:09]} 15. O-O {[%emt 0:00:15]} Rf8 {[%emt 0:01:19]} 16. Rab1 {[%emt 0:02:20]} Rb6 {[%emt 0:00:20]} 17. Rxb6 {[%emt 0:01:09]} cxb6 {[%emt 0:00:15]} 18. Rd1 {[%emt 0:00:54]} Ke7 {[%emt 0:01:18]} 19. Kf1 {[%emt 0:00:26]} d6 {[%emt 0:00:34]} 20. Bb3 {[%emt 0:00:21]} e5 {[%emt 0:00:57]} 21. Ba4 {[%emt 0:00:28]} b5 {[%emt 0:00:42]} 22. Bb3 {[%emt 0:00:28]} Be6 {[%emt 0:01:16]} 23. Bxe6 Kxe6 {[%emt 0:00:14]} 24. Ke2 {[%emt 0:00:35]} Rf4 {[%emt 0:00:31]} 25. g3 {[%emt 0:01:11]} Re4+ {[%emt 0:00:30]} 26. Kd3 {[%emt 0:00:43]} Ra4 {[%emt 0:00:39]} 27. Ra1 {[%emt 0:01:07]} d5 {[%emt 0:00:43]} 28. Re1 {[%emt 0:00:43]} Rxa2 {[%emt 0:00:53]} 29. f4 {[%emt 0:00:26]} e4+ {[%emt 0:00:07]} 30. Kd2 {[%emt 0:00:43]} Kf5 {[%emt 0:00:15]} 31. h3 {[%emt 0:02:58]} h5 {[%emt 0:00:39]} 32. h4 {[%emt 0:01:23]} a5 {[%emt 0:00:14]} 33. Kc1 {[%emt 0:02:50]} Ra1+ {[%emt 0:00:18]} 34. Kd2 {[%emt 0:00:10]} Rxe1 {[%emt 0:00:13]} 35. Kxe1 {[%emt 0:00:30]} Kg4 {[%emt 0:00:31]} 36. Kf2 {[%emt 0:00:33]} a4 {[%emt 0:00:11]} 37. Kg2 {[%emt 0:00:30]} a3 {[%emt 0:00:07]} 38. Kf2 {[%emt 0:00:26]} a2 {[%emt 0:00:07]} 39. Kg2 {[%emt 0:00:15]} a1=Q {[%emt 0:00:19]} 40. Kf2 {[%emt 0:00:41]} Qc1 {[%emt 0:00:15]} 41. Ke2 {[%emt 0:00:20]} Qxc2+ {[%emt 0:00:17]} 42. Ke3 {[%emt 0:00:59]} Qd3+ {[%emt 0:00:28]} 43. Kf2 {[%emt 0:00:19]} e3+ {[%emt 0:00:27]} 44. Kg2 {[%emt 0:00:20]} Qd2+ {[%emt 0:00:26]} 45. Kg1 {[%emt 0:02:05]} e2 {[%emt 0:00:16]} 46. Kf2 {[%emt 0:00:49]} e1=Q# {[%emt 0:00:15]} 0-1

[Event "HUN-chT Youth 2019"]
[Site "Budapest"]
[Date "2019.10.27"]
[Round "3.11"]
[White "Kocsmar, Akos"]
[Black "Kiss, Rebeka"]
[Result "1-0"]
[ECO "D11"]
[WhiteElo "1916"]
[BlackElo "1743"]
[Annotator "NA"]
[PlyCount "65"]
[EventDate "2019.10.26"]
[EventType "team-tourn"]
[EventCountry "HUN"]
[SourceTitle "playchess.com"]
[Source "ChessBase"]
[SourceQuality "1"]
[TimeControl "5400+30"]

1. d4 {[%emt 0:00:00]} d5 {[%emt 0:00:00]} 2. c4 {[%emt 0:00:11]} c6 {[%emt 0:00:14]} 3. Nf3 {[%emt 0:00:17]} Nf6 {[%emt 0:00:24]} 4. e3 {[%emt 0:00:34]} g6 {[%emt 0:01:11]} 5. Nc3 {[%emt 0:00:21]} Bg7 {[%emt 0:00:20]} 6. Be2 {[%emt 0:00:41]} O-O {[%emt 0:00:17]} 7. O-O {[%emt 0:00:35]} Nbd7 {[%emt 0:09:20]} 8. b3 {[%emt 0:09:45]} e6 {[%emt 0:11:37]} 9. Bb2 {[%emt 0:01:28]} Qa5 {[%emt 0:21:17]} 10. Qc2 {[%emt 0:01:31]} c5 {[%emt 0:05:40]} 11. cxd5 {[%emt 0:03:02]} exd5 {[%emt 0:02:07]} 12. Na4 {[%emt 0:01:27]} cxd4 {[%emt 0:01:47]} 13. Nxd4 {[%emt 0:00:45]} Ne5 {[%emt 0:01:56]} 14. Ba3 {[%emt 0:06:51]} Re8 {[%emt 0:00:53]} 15. b4 {[%emt 0:03:13]} Qd8 {[%emt 0:00:43]} 16. Rac1 {[%emt 0:00:02]} Bd7 {[%emt 0:04:07]} 17. Nc5 {[%emt 0:01:01]} b6 {[%emt 0:00:58]} 18. Nxd7 {[%emt 0:01:09]} Nfxd7 {[%emt 0:00:27]} 19. Qb3 {[%emt 0:02:57]} Nf6 {[%emt 0:01:24]} 20. h3 {[%emt 0:03:36]} g5 {[%emt 0:00:29]} 21. Bb5 {[%emt 0:01:55]} Re7 {[%emt 0:01:25]} 22. f4 {[%emt 0:00:55]} Nc4 {[%emt 0:04:26]} 23. Bxc4 {[%emt 0:02:14]} dxc4 {[%emt 0:00:08]} 24. Rxc4 {[%emt 0:01:41]} Qe8 {[%emt 0:01:35]} 25. Nf5 {[%emt 0:00:18]} Re6 {[%emt 0:00:18]} 26. fxg5 {[%emt 0:01:23]} Ne4 {[%emt 0:00:38]} 27. Bb2 {[%emt 0:13:53]} Bxb2 {[%emt 0:02:59]} 28. Qxb2 {[%emt 0:00:53]} Rg6 {[%emt 0:00:21]} 29. Nh6+ {[%emt 0:00:16]} Rxh6 {[%emt 0:00:46]} 30. gxh6 {[%emt 0:00:05]} f6 {[%emt 0:00:41]} 31. Qc2 {[%emt 0:00:33]} Ng5 {[%emt 0:01:29]} 32. Qb3 {[%emt 0:02:09]} Qg6 {[%emt 0:01:29]} 33. Rc8# {[%emt 0:00:26]} 1-0

[Event "HUN-chT Youth 2019"]
[Site "Budapest"]
[Date "2019.10.27"]
[Round "3.11"]
[White "Lazsadi, Blanka Anna"]
[Black "Puskas, Gergely"]
[Result "1-0"]
[ECO "C46"]
[WhiteElo "1142"]
[BlackElo "1015"]
[Annotator "NA"]
[PlyCount "40"]
[EventDate "2019.10.26"]
[EventType "team-tourn"]
[EventCountry "HUN"]
[SourceTitle "playchess.com"]
[Source "ChessBase"]
[SourceQuality "1"]
[TimeControl "5400+30"]

1. e4 {[%emt 0:00:00]} e5 {[%emt 0:00:00]} 2. Nf3 {[%emt 0:00:08]} Nc6 {[%emt 0:00:16]} 3. Nc3 {[%emt 0:00:38]} d6 {[%emt 0:00:23]} 4. h3 {[%emt 0:02:05]} h5 {[%emt 0:00:36]} 5. Bc4 {[%emt 0:02:56]} Nd4 {[%emt 0:02:45]} 6. d3 {[%emt 0:02:50]} Nxf3+ {[%emt 0:01:21]} 7. Qxf3 {[%emt 0:02:13]} f6 {[%emt 0:02:02]} 8. Be3 {[%emt 0:03:06]} Ne7 {[%emt 0:02:25]} 9. O-O-O {[%emt 0:03:01]} Nc6 {[%emt 0:02:02]} 10. Qg3 {[%emt 0:01:51]} Nd4 {[%emt 0:01:54]} 11. Qg6+ {[%emt 0:00:30]} Kd7 {[%emt 0:00:24]} 12. Qf7+ {[%emt 0:01:06]} Kc6 {[%emt 0:00:54]} 13. Bd5+ {[%emt 0:00:34]} Kc5 {[%emt 0:01:12]} 14. Na4+ {[%emt 0:00:50]} Kb5 {[%emt 0:01:37]} 15. Nc3+ {[%emt 0:00:54]} Kc5 {[%emt 0:06:23]} 16. Bc4 {[%emt 0:01:38]} Be6 {[%emt 0:01:41]} 17. Bxe6 {[%emt 0:00:20]} Kc6 {[%emt 0:00:49]} 18. Bd5+ {[%emt 0:00:00]} Kb6 {[%emt 0:02:26]} 19. Bc4 {[%emt 0:01:56]} d5 {[%emt 0:02:06]} 20. Nxd5+ {[%emt 0:02:20]} Kc5 1-0

[Event "HUN-chT Youth 2019"]
[Site "Budapest"]
[Date "2019.10.27"]
[Round "3.12"]
[White "Farkas, Virag"]
[Black "Szamko, Hanna"]
[Result "1-0"]
[ECO "D00"]
[WhiteElo "1506"]
[BlackElo "1402"]
[Annotator "NA"]
[PlyCount "87"]
[EventDate "2019.10.26"]
[EventType "team-tourn"]
[EventCountry "HUN"]
[SourceTitle "playchess.com"]
[Source "ChessBase"]
[SourceQuality "1"]
[TimeControl "5400+30"]

1. d4 {[%emt 0:00:00]} d5 {[%emt 0:00:00]} 2. Bf4 {[%emt 0:00:00]} Nf6 {[%emt 0:00:39]} 3. e3 {[%emt 0:00:11]} Bf5 {[%emt 0:00:51]} 4. Nf3 {[%emt 0:01:00]} e6 {[%emt 0:00:58]} 5. Bd3 {[%emt 0:02:53]} Bg6 {[%emt 0:02:08]} 6. Nbd2 {[%emt 0:02:33]} Nbd7 {[%emt 0:04:25]} 7. Ne5 {[%emt 0:04:35]} c5 {[%emt 0:08:45]} 8. Nxg6 {[%emt 0:14:33]} hxg6 {[%emt 0:01:27]} 9. c3 {[%emt 0:00:47]} c4 {[%emt 0:07:32]} 10. Bc2 {[%emt 0:00:32]} b5 {[%emt 0:04:16]} 11. e4 {[%emt 0:04:57]} Be7 {[%emt 0:04:38]} 12. e5 {[%emt 0:03:40]} Nh7 {[%emt 0:01:17]} 13. Be3 {[%emt 0:05:33]} Nhf8 {[%emt 0:16:41]} 14. g3 {[%emt 0:09:35]} f6 {[%emt 0:09:05]} 15. f4 {[%emt 0:04:18]} f5 {[%emt 0:04:00]} 16. h4 {[%emt 0:04:26]} Nb6 {[%emt 0:04:45]} 17. h5 {[%emt 0:06:28]} g5 {[%emt 0:01:25]} 18. Nf3 {[%emt 0:02:45]} g4 {[%emt 0:01:47]} 19. Ng5 {[%emt 0:03:30]} g6 {[%emt 0:04:34]} 20. h6 {[%emt 0:02:23]} Bxg5 {[%emt 0:01:05]} 21. fxg5 {[%emt 0:00:38]} Nh7 {[%emt 0:00:43]} 22. Qd2 {[%emt 0:01:19]} a5 {[%emt 0:02:33]} 23. b3 {[%emt 0:04:39]} Qe7 {[%emt 0:01:42]} 24. O-O {[%emt 0:03:06]} Kd7 {[%emt 0:02:38]} 25. Rfb1 {[%emt 0:01:07]} Rhb8 {[%emt 0:00:48]} 26. Rb2 {[%emt 0:02:19]} cxb3 {[%emt 0:01:24]} 27. axb3 {[%emt 0:01:43]} b4 {[%emt 0:03:17]} 28. Rba2 {[%emt 0:01:14]} Ke8 {[%emt 0:03:16]} 29. Rxa5 {[%emt 0:01:41]} Rxa5 {[%emt 0:01:16]} 30. Rxa5 {[%emt 0:00:10]} bxc3 {[%emt 0:00:46]} 31. Qxc3 {[%emt 0:00:16]} Rc8 {[%emt 0:00:51]} 32. Qd2 {[%emt 0:00:34]} Nd7 {[%emt 0:01:33]} 33. Ra1 {[%emt 0:00:36]} Qd8 {[%emt 0:00:36]} 34. Bd3 {[%emt 0:01:01]} Kf7 {[%emt 0:01:30]} 35. b4 {[%emt 0:00:31]} Qb6 {[%emt 0:00:55]} 36. b5 {[%emt 0:00:52]} Rc7 {[%emt 0:00:38]} 37. Qa5 {[%emt 0:01:24]} Qb7 {[%emt 0:00:36]} 38. Rb1 {[%emt 0:01:06]} Nb6 {[%emt 0:01:23]} 39. Bd2 {[%emt 0:01:06]} Nd7 {[%emt 0:00:43]} 40. b6 {[%emt 0:00:58]} Rc6 {[%emt 0:00:41]} 41. Qa7 {[%emt 0:01:20]} Qxa7 {[%emt 0:00:49]} 42. bxa7 {[%emt 0:00:17]} Rc8 {[%emt 0:00:19]} 43. Ra1 {[%emt 0:00:49]} Ra8 {[%emt 0:00:52]} 44. Bb5 {[%emt 0:00:39]} 1-0

[Event "HUN-chT Youth 2019"]
[Site "Budapest"]
[Date "2019.10.27"]
[Round "3.13"]
[White "Karacsonyi, Gellert"]
[Black "Kokeny, Norbert Adrian"]
[Result "0-1"]
[ECO "B41"]
[WhiteElo "2301"]
[BlackElo "2292"]
[Annotator "NA"]
[PlyCount "70"]
[EventDate "2019.10.26"]
[EventType "team-tourn"]
[EventCountry "HUN"]
[SourceTitle "playchess.com"]
[Source "ChessBase"]
[SourceQuality "1"]
[TimeControl "5400+30"]

1. e4 {[%emt 0:00:00]} c5 {[%emt 0:00:00]} 2. Nf3 {[%emt 0:00:00]} e6 {[%emt 0:00:00]} 3. d4 {[%emt 0:00:00]} cxd4 {[%emt 0:00:00]} 4. Nxd4 {[%emt 0:00:02]} a6 {[%emt 0:00:00]} 5. c4 {[%emt 0:02:16]} Nf6 {[%emt 0:00:02]} 6. Nc3 {[%emt 0:00:29]} Qc7 {[%emt 0:01:21]} 7. Be2 {[%emt 0:00:34]} Nc6 {[%emt 0:01:44]} 8. O-O {[%emt 0:06:53]} Nxd4 {[%emt 0:06:29]} 9. Qxd4 {[%emt 0:00:11]} Bd6 {[%emt 0:00:07]} 10. h3 {[%emt 0:01:49]} Bc5 {[%emt 0:07:59]} 11. Qd3 {[%emt 0:03:09]} d6 {[%emt 0:00:52]} 12. Kh1 {[%emt 0:00:59]} Bd7 {[%emt 0:00:28]} 13. f4 {[%emt 0:03:18]} h5 {[%emt 0:02:12]} 14. e5 {[%emt 0:28:31]} dxe5 {[%emt 0:00:18]} 15. Qg3 {[%emt 0:03:12]} e4 {[%emt 0:05:11]} 16. Qxg7 {[%emt 0:07:11]} Ke7 {[%emt 0:00:15]} 17. Qg5 {[%emt 0:01:04]} Bd4 {[%emt 0:02:45]} 18. Nxe4 {[%emt 0:14:12]} Rag8 {[%emt 0:03:36]} 19. Qh4 {[%emt 0:00:10]} Bc6 {[%emt 0:00:13]} 20. Ng5 {[%emt 0:02:11]} Ke8 {[%emt 0:03:34]} 21. Rd1 {[%emt 0:06:22]} Qb6 {[%emt 0:01:51]} 22. Bf3 {[%emt 0:11:06]} Bf2 {[%emt 0:04:17]} 23. Bxc6+ {[%emt 0:00:01]} bxc6 {[%emt 0:01:30]} 24. g3 {[%emt 0:00:14]} c5 {[%emt 0:02:52]} 25. Bd2 {[%emt 0:03:00]} Qc6+ {[%emt 0:01:16]} 26. Kh2 {[%emt 0:00:06]} Ng4+ {[%emt 0:20:53]} 27. hxg4 {[%emt 0:00:03]} hxg4 {[%emt 0:00:06]} 28. Nh7 {[%emt 0:00:09]} Bxg3+ {[%emt 0:00:05]} 29. Qxg3 {[%emt 0:00:14]} Rxh7+ {[%emt 0:00:12]} 30. Kg1 {[%emt 0:00:05]} Rgh8 {[%emt 0:00:20]} 31. Rf1 {[%emt 0:07:22]} Rh1+ {[%emt 0:00:18]} 32. Kf2 {[%emt 0:00:07]} R8h2+ {[%emt 0:00:06]} 33. Ke3 {[%emt 0:00:57]} Rh3 {[%emt 0:00:16]} 34. Qxh3 {[%emt 0:00:28]} Rxh3+ {[%emt 0:00:06]} 35. Ke2 {[%emt 0:00:08]} Rh2+ {[%emt 0:00:10]} 0-1

[Event "HUN-chT Youth 2019"]
[Site "Budapest"]
[Date "2019.10.27"]
[Round "3.13"]
[White "Thierry, Edvard"]
[Black "Szarka, Tibor"]
[Result "1-0"]
[ECO "B07"]
[WhiteElo "1507"]
[BlackElo "1469"]
[Annotator "NA"]
[PlyCount "75"]
[EventDate "2019.10.26"]
[EventType "team-tourn"]
[EventCountry "HUN"]
[SourceTitle "playchess.com"]
[Source "ChessBase"]
[SourceQuality "1"]
[TimeControl "5400+30"]

1. e4 {[%emt 0:00:00]} d6 {[%emt 0:00:00]} 2. d4 {[%emt 0:00:00]} Nf6 {[%emt 0:00:00]} 3. Nc3 {[%emt 0:00:08]} Nbd7 {[%emt 0:00:08]} 4. Nf3 {[%emt 0:01:21]} e5 {[%emt 0:00:10]} 5. dxe5 {[%emt 0:00:42]} dxe5 {[%emt 0:00:08]} 6. Bd3 {[%emt 0:01:14]} c6 {[%emt 0:00:55]} 7. O-O {[%emt 0:00:40]} Be7 {[%emt 0:00:28]} 8. h3 {[%emt 0:00:49]} O-O {[%emt 0:00:26]} 9. Be3 {[%emt 0:00:16]} b5 {[%emt 0:01:19]} 10. a3 {[%emt 0:01:22]} a6 {[%emt 0:00:23]} 11. b4 {[%emt 0:02:29]} Bb7 {[%emt 0:00:51]} 12. Na2 {[%emt 0:10:07]} c5 {[%emt 0:03:19]} 13. bxc5 {[%emt 0:00:21]} Nxe4 {[%emt 0:00:51]} 14. Nb4 {[%emt 0:04:39]} Nexc5 {[%emt 0:02:03]} 15. Bf5 {[%emt 0:01:33]} Bf6 {[%emt 0:10:37]} 16. Rb1 {[%emt 0:01:59]} Qe7 {[%emt 0:09:08]} 17. Nd5 {[%emt 0:01:30]} Bxd5 {[%emt 0:01:03]} 18. Qxd5 {[%emt 0:00:07]} Rac8 {[%emt 0:14:04]} 19. Bxc5 {[%emt 0:01:22]} Rxc5 {[%emt 0:10:37]} 20. Qxd7 {[%emt 0:00:10]} Qxd7 {[%emt 0:01:53]} 21. Bxd7 {[%emt 0:00:06]} Rxc2 {[%emt 0:00:14]} 22. Bf5 {[%emt 0:00:34]} Ra2 {[%emt 0:01:21]} 23. Rb3 {[%emt 0:00:59]} Be7 {[%emt 0:01:37]} 24. Nxe5 {[%emt 0:01:18]} Rxa3 {[%emt 0:00:44]} 25. Rxa3 Bxa3 {[%emt 0:00:30]} 26. Nf3 Ra8 {[%emt 0:00:30]} 27. Nd4 Bd6 {[%emt 0:00:30]} 28. Be4 Rb8 {[%emt 0:00:30]} 29. Nc6 Rb6 {[%emt 0:00:30]} 30. Rd1 Bf8 {[%emt 0:00:30]} 31. Rd8 g6 {[%emt 0:00:30]} 32. Rb8 Rxb8 {[%emt 0:00:30]} 33. Nxb8 a5 {[%emt 0:00:30]} 34. Bc6 b4 {[%emt 0:00:30]} 35. Ba4 Bd6 {[%emt 0:00:30]} 36. Nc6 Bc7 {[%emt 0:00:30]} 37. Kf1 Kf8 {[%emt 0:00:30]} 38. Ke2 {...} 1-0

[Event "HUN-chT Youth 2019"]
[Site "Budapest"]
[Date "2019.10.27"]
[Round "3.14"]
[White "Baski, Barnabas"]
[Black "Demjen, Mark"]
[Result "1/2-1/2"]
[ECO "A05"]
[WhiteElo "2037"]
[BlackElo "1902"]
[Annotator "NA"]
[PlyCount "53"]
[EventDate "2019.10.26"]
[EventType "team-tourn"]
[EventCountry "HUN"]
[SourceTitle "playchess.com"]
[Source "ChessBase"]
[SourceQuality "1"]
[TimeControl "5400+30"]

1. Nf3 {[%emt 0:00:00]} Nf6 {[%emt 0:00:00]} 2. g3 {[%emt 0:00:00]} g6 {[%emt 0:00:00]} 3. Bg2 {[%emt 0:00:00]} Bg7 {[%emt 0:00:02]} 4. O-O {[%emt 0:00:00]} O-O {[%emt 0:00:04]} 5. d4 {[%emt 0:00:06]} c5 {[%emt 0:00:03]} 6. c4 {[%emt 0:01:34]} cxd4 {[%emt 0:00:13]} 7. Nxd4 {[%emt 0:00:15]} Nc6 {[%emt 0:00:05]} 8. Nc3 {[%emt 0:00:40]} Ng4 {[%emt 0:00:44]} 9. e3 {[%emt 0:02:02]} Nxd4 {[%emt 0:00:52]} 10. exd4 {[%emt 0:00:59]} Nh6 {[%emt 0:00:04]} 11. Bxh6 {[%emt 0:11:07]} Bxh6 {[%emt 0:00:22]} 12. Qb3 {[%emt 0:01:22]} Rb8 {[%emt 0:03:57]} 13. Qa3 {[%emt 0:09:15]} a6 {[%emt 0:01:27]} 14. Rfe1 {[%emt 0:02:33]} d6 {[%emt 0:00:17]} 15. c5 {[%emt 0:04:32]} Bg7 {[%emt 0:16:04]} 16. d5 {[%emt 0:14:48]} b5 {[%emt 0:22:23]} 17. Ne4 {[%emt 0:17:26]} b4 {[%emt 0:09:47]} 18. Qb3 {[%emt 0:01:30]} dxc5 {[%emt 0:04:50]} 19. Nxc5 {[%emt 0:00:45]} Rb5 {[%emt 0:03:49]} 20. Rac1 {[%emt 0:08:50]} Bd4 {[%emt 0:10:07]} 21. Nd3 {[%emt 0:01:09]} Bb7 {[%emt 0:01:16]} 22. Qc4 {[%emt 0:02:33]} Ba7 {[%emt 0:15:43]} 23. Qc7 {[%emt 0:04:26]} Bxd5 {[%emt 0:05:58]} 24. Bxd5 {[%emt 0:07:47]} Rxd5 {[%emt 0:00:42]} 25. Qxa7 {[%emt 0:01:56]} Rxd3 {[%emt 0:00:06]} 26. Qxe7 {[%emt 0:01:50]} Qd4 {[%emt 0:02:14]} 27. Qe5 {[%emt 0:01:07]} 1/2-1/2

[Event "HUN-chT Youth 2019"]
[Site "Budapest"]
[Date "2019.10.27"]
[Round "3.14"]
[White "Vilics, Hanna"]
[Black "Szuhorukov, Marcell"]
[Result "0-1"]
[ECO "A49"]
[WhiteElo "1253"]
[BlackElo "1384"]
[Annotator "NA"]
[PlyCount "46"]
[EventDate "2019.10.26"]
[EventType "team-tourn"]
[EventCountry "HUN"]
[SourceTitle "playchess.com"]
[Source "ChessBase"]
[SourceQuality "1"]
[TimeControl "5400+30"]

1. d4 {[%emt 0:00:00]} Nf6 {[%emt 0:00:00]} 2. Nf3 {[%emt 0:00:00]} g6 {[%emt 0:00:08]} 3. g3 {[%emt 0:00:00]} Bg7 {[%emt 0:00:07]} 4. Bg2 {[%emt 0:00:02]} O-O {[%emt 0:00:16]} 5. O-O {[%emt 0:00:08]} d6 {[%emt 0:00:47]} 6. c4 {[%emt 0:00:09]} Nbd7 {[%emt 0:07:08]} 7. b3 {[%emt 0:00:18]} e5 {[%emt 0:01:26]} 8. dxe5 {[%emt 0:00:36]} dxe5 {[%emt 0:01:44]} 9. Bb2 {[%emt 0:00:00]} Re8 {[%emt 0:00:30]} 10. Nbd2 {[%emt 0:00:13]} a5 {[%emt 0:11:43]} 11. Rc1 {[%emt 0:00:31]} c6 {[%emt 0:01:11]} 12. Qc2 {[%emt 0:00:24]} e4 {[%emt 0:03:15]} 13. Bxf6 Nxf6 {[%emt 0:00:21]} 14. Ng5 {[%emt 0:03:59]} Bh6 {[%emt 0:06:20]} 15. h4 {[%emt 0:04:36]} e3 {[%emt 0:01:52]} 16. fxe3 {[%emt 0:04:52]} Rxe3 {[%emt 0:01:21]} 17. Nde4 {[%emt 0:03:16]} Nxe4 {[%emt 0:02:06]} 18. Nxe4 {[%emt 0:00:16]} Bf5 {[%emt 0:01:07]} 19. g4 {[%emt 0:12:41]} Bxe4 {[%emt 0:01:50]} 20. Bxe4 {[%emt 0:00:22]} Qd4 {[%emt 0:01:20]} 21. Rcd1 {[%emt 0:09:12]} Qxe4 {[%emt 0:04:24]} 22. Qb2 {[%emt 0:02:08]} Qxg4+ {[%emt 0:00:20]} 23. Kf2 {[%emt 0:00:11]} Qg3# {[%emt 0:00:16]} 0-1

[Event "HUN-chT Youth 2019"]
[Site "Budapest"]
[Date "2019.10.27"]
[Round "3.15"]
[White "Kocsis, Peter"]
[Black "Monduk, Ferenc"]
[Result "1/2-1/2"]
[ECO "A05"]
[WhiteElo "1929"]
[BlackElo "1987"]
[Annotator "NA"]
[PlyCount "77"]
[EventDate "2019.10.26"]
[EventType "team-tourn"]
[EventCountry "HUN"]
[SourceTitle "playchess.com"]
[Source "ChessBase"]
[SourceQuality "1"]
[TimeControl "5400+30"]

1. Nf3 {[%emt 0:00:00]} Nf6 {[%emt 0:00:00]} 2. b3 {[%emt 0:00:00]} g6 {[%emt 0:00:00]} 3. Bb2 {[%emt 0:00:00]} Bg7 {[%emt 0:00:00]} 4. e3 {[%emt 0:00:00]} O-O {[%emt 0:00:08]} 5. d4 {[%emt 0:00:00]} d5 {[%emt 0:00:55]} 6. Bd3 {[%emt 0:00:01]} Nbd7 {[%emt 0:02:02]} 7. O-O {[%emt 0:00:15]} c6 {[%emt 0:01:04]} 8. c4 {[%emt 0:00:36]} Re8 {[%emt 0:01:43]} 9. Nbd2 {[%emt 0:01:29]} c5 {[%emt 0:04:35]} 10. Rc1 {[%emt 0:02:41]} b6 {[%emt 0:00:37]} 11. dxc5 {[%emt 0:03:30]} Nxc5 {[%emt 0:00:08]} 12. Bb1 {[%emt 0:00:24]} dxc4 {[%emt 0:02:32]} 13. Nxc4 {[%emt 0:00:47]} Bb7 {[%emt 0:00:54]} 14. Qe2 {[%emt 0:07:00]} e6 {[%emt 0:04:56]} 15. Rfd1 {[%emt 0:00:44]} Qe7 {[%emt 0:00:03]} 16. Be5 {[%emt 0:05:43]} Nfe4 {[%emt 0:09:07]} 17. Bxg7 {[%emt 0:02:37]} Kxg7 {[%emt 0:00:07]} 18. Qb2+ {[%emt 0:06:14]} Kg8 {[%emt 0:07:47]} 19. Bc2 {[%emt 0:04:31]} b5 {[%emt 0:07:05]} 20. Na5 {[%emt 0:05:10]} Bd5 {[%emt 0:05:10]} 21. b4 {[%emt 0:01:35]} Nb7 {[%emt 0:00:27]} 22. Nxb7 {[%emt 0:02:29]} Qxb7 {[%emt 0:00:17]} 23. Bb3 {[%emt 0:01:08]} Red8 {[%emt 0:02:18]} 24. Bxd5 {[%emt 0:04:19]} Rxd5 {[%emt 0:00:27]} 25. Rxd5 {[%emt 0:00:14]} Qxd5 {[%emt 0:00:18]} 26. Qd4 {[%emt 0:00:44]} a5 {[%emt 0:04:52]} 27. a3 {[%emt 0:06:37]} axb4 {[%emt 0:10:27]} 28. axb4 {[%emt 0:00:56]} Qxd4 {[%emt 0:08:13]} 29. Nxd4 {[%emt 0:00:03]} Nd6 {[%emt 0:00:39]} 30. h3 {[%emt 0:05:49]} e5 {[%emt 0:01:35]} 31. Nc6 {[%emt 0:01:19]} Nc4 {[%emt 0:02:04]} 32. Na5 {[%emt 0:03:44]} Nxa5 {[%emt 0:05:30]} 33. Ra1 {[%emt 0:05:27]} Kg7 {[%emt 0:00:38]} 34. Rxa5 {[%emt 0:01:14]} Rxa5 {[%emt 0:01:14]} 35. bxa5 {[%emt 0:00:02]} b4 {[%emt 0:00:07]} 36. a6 {[%emt 0:00:06]} b3 {[%emt 0:00:05]} 37. a7 {[%emt 0:00:03]} b2 {[%emt 0:00:04]} 38. a8=Q {[%emt 0:00:07]} b1=Q+ {[%emt 0:00:08]} 39. Kh2 {[%emt 0:00:06]} 1/2-1/2

[Event "HUN-chT Youth 2019"]
[Site "Budapest"]
[Date "2019.10.27"]
[Round "3.15"]
[White "Meszaros, Jazmin"]
[Black "Porpaczy, Marton"]
[Result "0-1"]
[ECO "C50"]
[WhiteElo "1171"]
[BlackElo "1066"]
[Annotator "NA"]
[PlyCount "38"]
[EventDate "2019.10.26"]
[EventType "team-tourn"]
[EventCountry "HUN"]
[SourceTitle "playchess.com"]
[Source "ChessBase"]
[SourceQuality "1"]
[TimeControl "5400+30"]

1. e4 {[%emt 0:00:00]} e5 {[%emt 0:00:00]} 2. Nf3 {[%emt 0:00:06]} Nc6 {[%emt 0:00:00]} 3. Nc3 {[%emt 0:00:44]} Bc5 {[%emt 0:00:00]} 4. Bc4 {[%emt 0:02:19]} Nf6 {[%emt 0:00:26]} 5. O-O {[%emt 0:01:15]} d6 {[%emt 0:00:19]} 6. Ng5 {[%emt 0:01:05]} O-O {[%emt 0:00:25]} 7. Qg4 {[%emt 0:01:02]} Bxg4 {[%emt 0:00:05]} 8. h3 {[%emt 0:02:52]} Bh5 {[%emt 0:00:11]} 9. d3 {[%emt 0:02:45]} h6 {[%emt 0:00:12]} 10. Nf3 {[%emt 0:00:40]} Bxf3 {[%emt 0:00:08]} 11. gxf3 {[%emt 0:04:32]} Nd4 {[%emt 0:00:36]} 12. Rd1 {[%emt 0:03:54]} Qd7 {[%emt 0:00:18]} 13. Kf1 {[%emt 0:02:00]} Qxh3+ 14. Ke1 {[%emt 0:00:58]} Nxc2+ {[%emt 0:00:37]} 15. Kd2 {[%emt 0:01:29]} Nxa1 {[%emt 0:00:14]} 16. Nd5 {[%emt 0:02:34]} Nxd5 {[%emt 0:00:15]} 17. Bxd5 {[%emt 0:00:31]} Qg2 {[%emt 0:00:43]} 18. Re1 {[%emt 0:05:13]} Qxf2+ {[%emt 0:01:06]} 19. Kd1 {[%emt 0:00:40]} Qc2# {[%emt 0:00:10]} 0-1